[Event "Titled Tuesday Blitz March 22 Early 2022"]
[White "Sanchez Alvares, Kelvin Antonio"]
[Black "Hoeffer, David"]
[WhiteFideId "3906680"]
[BlackFideId "24606766"]
[WhiteElo "2193"]
[BlackElo "2301"]
[Result "1-0"]
[Round "08"]
[TimeControl "180+1"]
[Date "2022.03.22"]
[WhiteClock "0:00:13"]
[BlackClock "0:00:33"]

1. e4 {[%clk 0:03:00]}  Nc6 {[%clk 0:02:56]} 2. d4 {[%clk 0:03:00]}  d5 {[%clk 0:02:56]} 3. e5 {[%clk 0:02:54]}  f6 {[%clk 0:02:56]} 4. exf6 {[%clk 0:02:54]}  exf6 {[%clk 0:02:57]} 5. Nf3 {[%clk 0:02:53]}  Bd6 {[%clk 0:02:56]} 6. Be2 {[%clk 0:02:46]}  Nge7 {[%clk 0:02:50]} 7. O-O {[%clk 0:02:45]}  O-O {[%clk 0:02:50]} 8. h3 {[%clk 0:02:46]}  Bf5 {[%clk 0:02:42]} 9. Nbd2 {[%clk 0:02:44]}  Ng6 {[%clk 0:02:42]} 10. Nb3 {[%clk 0:02:43]}  Nce7 {[%clk 0:02:42]} 11. Re1 {[%clk 0:02:38]}  Qd7 {[%clk 0:02:18]} 12. Bf1 {[%clk 0:02:35]}  Rae8 {[%clk 0:02:17]} 13. Be3 {[%clk 0:02:30]}  c6 {[%clk 0:02:17]} 14. Qd2 {[%clk 0:02:29]}  Be4 {[%clk 0:02:15]} 15. Nh2 {[%clk 0:02:29]}  Nh4 {[%clk 0:02:13]} 16. g3 {[%clk 0:02:18]}  Nf3+ {[%clk 0:02:01]} 17. Nxf3 {[%clk 0:02:17]}  Bxf3 {[%clk 0:02:02]} 18. Qa5 {[%clk 0:02:13]}  Nf5 {[%clk 0:01:54]} 19. Qd2 {[%clk 0:01:56]}  h5 {[%clk 0:01:42]} 20. Bf4 {[%clk 0:01:54]}  h4 {[%clk 0:01:40]} 21. g4 {[%clk 0:01:50]}  Ne7 {[%clk 0:01:33]} 22. Bxd6 {[%clk 0:01:46]}  Qxd6 {[%clk 0:01:34]} 23. Qc3 {[%clk 0:01:44]}  Be4 {[%clk 0:01:32]} 24. Nd2 {[%clk 0:01:36]}  Ng6 {[%clk 0:01:30]} 25. Nxe4 {[%clk 0:01:29]}  Rxe4 {[%clk 0:01:08]} 26. Rxe4 {[%clk 0:01:24]}  dxe4 {[%clk 0:01:08]} 27. Re1 {[%clk 0:01:22]}  Re8 {[%clk 0:01:08]} 28. Qb3+ {[%clk 0:01:21]}  Kh7 {[%clk 0:01:07]} 29. c3 {[%clk 0:01:15]}  b5 {[%clk 0:01:06]} 30. Bg2 {[%clk 0:01:08]}  Qf4 {[%clk 0:01:00]} 31. Qc2 {[%clk 0:00:58]}  e3 {[%clk 0:00:56]} 32. fxe3 {[%clk 0:00:56]}  Rxe3 {[%clk 0:00:57]} 33. Rxe3 {[%clk 0:00:52]}  Qxe3+ {[%clk 0:00:58]} 34. Qf2 {[%clk 0:00:51]}  Qc1+ {[%clk 0:00:47]} 35. Kh2 {[%clk 0:00:48]}  Nf4 {[%clk 0:00:44]} 36. Bxc6 {[%clk 0:00:45]}  g5 {[%clk 0:00:41]} 37. Be4+ {[%clk 0:00:43]}  Kh6 {[%clk 0:00:41]} 38. d5 {[%clk 0:00:36]}  Qd1 {[%clk 0:00:38]} 39. Bg2 {[%clk 0:00:29]}  Nxd5 {[%clk 0:00:34]} 40. Bxd5 {[%clk 0:00:26]}  Qxd5 {[%clk 0:00:35]} 41. Qxf6+ {[%clk 0:00:26]}  Kh7 {[%clk 0:00:36]} 42. Qe7+ {[%clk 0:00:17]}  Kh6 {[%clk 0:00:36]} 43. Qxa7 {[%clk 0:00:17]}  Qd2+ {[%clk 0:00:36]} 44. Kg1 {[%clk 0:00:17]}  Qxb2 {[%clk 0:00:31]} 45. Qb6+ {[%clk 0:00:16]}  Kg7 {[%clk 0:00:30]} 46. Qc7+ {[%clk 0:00:17]}  Kg6 {[%clk 0:00:31]} 47. Qd6+ {[%clk 0:00:15]}  Kg7 {[%clk 0:00:31]} 48. Qe7+ {[%clk 0:00:15]}  Kg6 {[%clk 0:00:32]} 49. Qe6+ {[%clk 0:00:14]}  Kg7 {[%clk 0:00:32]} 50. Qe5+ {[%clk 0:00:14]}  Kg6 {[%clk 0:00:32]} 51. Qf5+ {[%clk 0:00:14]}  Kh6 {[%clk 0:00:33]} 52. Qf6+ {[%clk 0:00:14]}  Kh7 {[%clk 0:00:34]} 53. Qxg5 {[%clk 0:00:14]}  Qb1+ {[%clk 0:00:33]} 54. Kf2 {[%clk 0:00:14]}  Qxa2+ {[%clk 0:00:34]} 55. Kf3 {[%clk 0:00:14]}  Qc4 {[%clk 0:00:31]} 56. Qxh4+ {[%clk 0:00:13]}  Kg7 {[%clk 0:00:32]} 57. Qg5+ {[%clk 0:00:13]}  Kh7 {[%clk 0:00:33]} 58. Qf5+ {[%clk 0:00:13]}  Kg7 {[%clk 0:00:33]} 59. Qe5+ {[%clk 0:00:13]}  Kh7 {[%clk 0:00:33]} 60. Qe4+ {[%clk 0:00:13]} 1-0


[Site "https://www.chess.com"]

[Event "Titled Tuesday Blitz March 22 Early 2022"]
[White "Sarana, Alexey"]
[Black "Narayanan.S.L"]
[WhiteFideId "24133795"]
[BlackFideId "5058422"]
[WhiteElo "2666"]
[BlackElo "2494"]
[Result "1-0"]
[Round "08"]
[TimeControl "180+1"]
[Date "2022.03.22"]
[WhiteClock "0:00:10"]
[BlackClock "0:00:04"]

1. d4 {[%clk 0:02:54]}  d5 {[%clk 0:03:00]} 2. c4 {[%clk 0:02:54]}  c6 {[%clk 0:03:00]} 3. Nc3 {[%clk 0:02:54]}  e6 {[%clk 0:02:59]} 4. e3 {[%clk 0:02:53]}  Nf6 {[%clk 0:02:59]} 5. Nf3 {[%clk 0:02:54]}  Nbd7 {[%clk 0:02:59]} 6. Qc2 {[%clk 0:02:54]}  a6 {[%clk 0:02:59]} 7. b3 {[%clk 0:02:50]}  Bd6 {[%clk 0:02:55]} 8. Bd3 {[%clk 0:02:50]}  O-O {[%clk 0:02:55]} 9. O-O {[%clk 0:02:50]}  e5 {[%clk 0:02:55]} 10. cxd5 {[%clk 0:02:38]}  cxd5 {[%clk 0:02:55]} 11. dxe5 {[%clk 0:02:38]}  Nxe5 {[%clk 0:02:55]} 12. Nd4 {[%clk 0:02:37]}  Bg4 {[%clk 0:02:44]} 13. Bb2 {[%clk 0:02:34]}  Rc8 {[%clk 0:02:44]} 14. Rac1 {[%clk 0:02:32]}  Nxd3 {[%clk 0:02:27]} 15. Qxd3 {[%clk 0:02:33]}  Bh5 {[%clk 0:02:27]} 16. Nf3 {[%clk 0:02:12]}  Bxf3 {[%clk 0:02:19]} 17. gxf3 {[%clk 0:02:12]}  Be5 {[%clk 0:02:17]} 18. Kg2 {[%clk 0:01:26]}  Qe7 {[%clk 0:01:41]} 19. Rfd1 {[%clk 0:01:02]}  Rcd8 {[%clk 0:01:31]} 20. f4 {[%clk 0:00:47]}  Bxc3 {[%clk 0:01:22]} 21. Qxc3 {[%clk 0:00:35]}  Qe6 {[%clk 0:01:22]} 22. h3 {[%clk 0:00:31]}  Rc8 {[%clk 0:01:14]} 23. Qe5 {[%clk 0:00:31]}  h6 {[%clk 0:00:55]} 24. Bd4 {[%clk 0:00:30]}  Qd7 {[%clk 0:00:45]} 25. f5 {[%clk 0:00:19]}  Rce8 {[%clk 0:00:31]} 26. Qf4 {[%clk 0:00:15]}  Re4 {[%clk 0:00:31]} 27. Qf3 {[%clk 0:00:15]}  Nh7 {[%clk 0:00:19]} 28. Qg3 {[%clk 0:00:12]}  f6 {[%clk 0:00:17]} 29. Rc7 {[%clk 0:00:11]}  Qxc7 {[%clk 0:00:13]} 30. Qxc7 {[%clk 0:00:11]}  Rf7 {[%clk 0:00:14]} 31. Qc8+ {[%clk 0:00:11]}  Nf8 {[%clk 0:00:12]} 32. Rc1 {[%clk 0:00:11]}  h5 {[%clk 0:00:10]} 33. Rc7 {[%clk 0:00:11]}  Re8 {[%clk 0:00:05]} 34. Qxb7 {[%clk 0:00:09]}  Rxc7 {[%clk 0:00:04]} 35. Qxc7 {[%clk 0:00:10]}  Nh7 {[%clk 0:00:04]} 36. h4 {[%clk 0:00:10]}  Nf8 {[%clk 0:00:04]} 37. Bc5 {[%clk 0:00:10]} 1-0


[Site "https://www.chess.com"]

[Event "Titled Tuesday Blitz March 22 Early 2022"]
[White "Sargsyan, Anna M."]
[Black "Karas, Marek"]
[WhiteFideId "13308130"]
[BlackFideId "14928558"]
[WhiteElo "2271"]
[BlackElo "2271"]
[Result "1-0"]
[Round "08"]
[TimeControl "180+1"]
[Date "2022.03.22"]
[WhiteClock "0:00:27"]
[BlackClock "0:00:51"]

1. d4 {[%clk 0:03:00]}  Nf6 {[%clk 0:02:59]} 2. c4 {[%clk 0:03:00]}  c5 {[%clk 0:02:59]} 3. Nf3 {[%clk 0:03:00]}  cxd4 {[%clk 0:02:58]} 4. Nxd4 {[%clk 0:03:01]}  Nc6 {[%clk 0:02:57]} 5. Nxc6 {[%clk 0:02:59]}  bxc6 {[%clk 0:02:57]} 6. g3 {[%clk 0:02:58]}  g6 {[%clk 0:02:57]} 7. Bg2 {[%clk 0:02:58]}  Bg7 {[%clk 0:02:58]} 8. O-O {[%clk 0:02:58]}  O-O {[%clk 0:02:58]} 9. Qc2 {[%clk 0:02:58]}  Rb8 {[%clk 0:02:57]} 10. Nc3 {[%clk 0:02:58]}  Qc7 {[%clk 0:02:55]} 11. e4 {[%clk 0:02:55]}  d6 {[%clk 0:02:55]} 12. Be3 {[%clk 0:02:54]}  a5 {[%clk 0:02:47]} 13. h3 {[%clk 0:02:53]}  Ba6 {[%clk 0:02:46]} 14. b3 {[%clk 0:02:51]}  Nd7 {[%clk 0:02:44]} 15. Rad1 {[%clk 0:02:45]}  Rfd8 {[%clk 0:02:30]} 16. Rfe1 {[%clk 0:02:43]}  Nc5 {[%clk 0:02:29]} 17. f4 {[%clk 0:02:21]}  Bb7 {[%clk 0:02:28]} 18. Bxc5 {[%clk 0:02:20]}  dxc5 {[%clk 0:02:28]} 19. e5 {[%clk 0:02:21]}  Rd4 {[%clk 0:02:22]} 20. Ne4 {[%clk 0:02:18]}  Rbd8 {[%clk 0:02:15]} 21. Kh2 {[%clk 0:02:16]}  Qb6 {[%clk 0:02:09]} 22. Ng5 {[%clk 0:02:13]}  Bc8 {[%clk 0:02:01]} 23. Nf3 {[%clk 0:02:02]}  Bf5 {[%clk 0:02:01]} 24. Qc1 {[%clk 0:01:56]}  Rxd1 {[%clk 0:01:54]} 25. Rxd1 {[%clk 0:01:56]}  Be4 {[%clk 0:01:51]} 26. Rxd8+ {[%clk 0:01:41]}  Qxd8 {[%clk 0:01:52]} 27. Qe3 {[%clk 0:01:41]}  Qd3 {[%clk 0:01:41]} 28. Qxd3 {[%clk 0:01:25]}  Bxd3 {[%clk 0:01:42]} 29. Nd2 {[%clk 0:01:04]}  f6 {[%clk 0:01:34]} 30. exf6 {[%clk 0:00:57]}  Bxf6 {[%clk 0:01:35]} 31. Bxc6 {[%clk 0:00:57]}  Bc3 {[%clk 0:01:32]} 32. Ne4 {[%clk 0:00:39]}  Bb4 {[%clk 0:01:26]} 33. Nf2 {[%clk 0:00:34]}  Bb1 {[%clk 0:01:24]} 34. Be4 {[%clk 0:00:35]}  Bxa2 {[%clk 0:01:24]} 35. Bc2 {[%clk 0:00:35]}  a4 {[%clk 0:01:24]} 36. bxa4 {[%clk 0:00:31]}  Bxc4 {[%clk 0:01:25]} 37. Nd3 {[%clk 0:00:30]}  Bxd3 {[%clk 0:01:18]} 38. Bxd3 {[%clk 0:00:30]}  Kg7 {[%clk 0:01:16]} 39. Kg2 {[%clk 0:00:29]}  Kf6 {[%clk 0:01:16]} 40. Kf3 {[%clk 0:00:26]}  e5 {[%clk 0:01:15]} 41. Ke4 {[%clk 0:00:27]}  exf4 {[%clk 0:01:00]} 42. gxf4 {[%clk 0:00:28]}  Ke6 {[%clk 0:00:52]} 43. Bc4+ {[%clk 0:00:27]}  Kd6 {[%clk 0:00:51]} 44. Bg8 {[%clk 0:00:27]} 1-0


[Site "https://www.chess.com"]

[Event "Titled Tuesday Blitz March 22 Early 2022"]
[White "Tsyhanchuk, Stanislav"]
[Black "Jaferian, Koosha"]
[WhiteFideId "13505130"]
[BlackFideId "12507440"]
[WhiteElo "2078"]
[BlackElo "2030"]
[Result "0-1"]
[Round "08"]
[TimeControl "180+1"]
[Date "2022.03.22"]
[WhiteClock "0:00:06"]
[BlackClock "0:00:29"]

1. e4 {[%clk 0:03:00]}  c6 {[%clk 0:02:46]} 2. d4 {[%clk 0:03:00]}  d5 {[%clk 0:02:47]} 3. e5 {[%clk 0:03:00]}  Bf5 {[%clk 0:02:47]} 4. Nf3 {[%clk 0:03:00]}  e6 {[%clk 0:02:48]} 5. Be2 {[%clk 0:03:00]}  c5 {[%clk 0:02:48]} 6. O-O {[%clk 0:02:59]}  Nc6 {[%clk 0:02:48]} 7. Be3 {[%clk 0:02:52]}  cxd4 {[%clk 0:02:45]} 8. Bxd4 {[%clk 0:02:45]}  Nge7 {[%clk 0:02:45]} 9. Nc3 {[%clk 0:02:43]}  a6 {[%clk 0:02:44]} 10. a3 {[%clk 0:02:37]}  Bg6 {[%clk 0:02:43]} 11. Bc5 {[%clk 0:02:26]}  Nf5 {[%clk 0:02:28]} 12. Bxf8 {[%clk 0:02:25]}  Kxf8 {[%clk 0:02:29]} 13. Re1 {[%clk 0:02:14]}  Qc7 {[%clk 0:02:22]} 14. Bd3 {[%clk 0:02:09]}  h6 {[%clk 0:02:20]} 15. Bxf5 {[%clk 0:02:02]}  Bxf5 {[%clk 0:02:20]} 16. Nd4 {[%clk 0:02:01]}  Nxd4 {[%clk 0:02:18]} 17. Qxd4 {[%clk 0:02:02]}  Kg8 {[%clk 0:02:17]} 18. Qf4 {[%clk 0:02:00]}  Bg6 {[%clk 0:02:12]} 19. Rac1 {[%clk 0:01:53]}  Kh7 {[%clk 0:02:13]} 20. Ne2 {[%clk 0:01:50]}  Rac8 {[%clk 0:02:12]} 21. Nd4 {[%clk 0:01:41]}  Qb6 {[%clk 0:02:12]} 22. b4 {[%clk 0:01:23]}  Rc3 {[%clk 0:02:11]} 23. Rcd1 {[%clk 0:01:13]}  Rxa3 {[%clk 0:02:07]} 24. h4 {[%clk 0:01:10]}  Rc3 {[%clk 0:01:20]} 25. g4 {[%clk 0:00:55]}  Kg8 {[%clk 0:01:09]} 26. Rd2 {[%clk 0:00:34]}  Rc4 {[%clk 0:01:06]} 27. h5 {[%clk 0:00:24]}  Be4 {[%clk 0:01:04]} 28. c3 {[%clk 0:00:19]}  Rxc3 {[%clk 0:00:57]} 29. f3 {[%clk 0:00:19]}  Rxf3 {[%clk 0:00:45]} 30. Qh2 {[%clk 0:00:18]}  Rd3 {[%clk 0:00:38]} 31. Rxd3 {[%clk 0:00:17]}  Bxd3 {[%clk 0:00:39]} 32. Qf2 {[%clk 0:00:16]}  Qxb4 {[%clk 0:00:37]} 33. Rc1 {[%clk 0:00:15]}  Bc4 {[%clk 0:00:37]} 34. Nc2 {[%clk 0:00:14]}  Qe7 {[%clk 0:00:34]} 35. Ne3 {[%clk 0:00:13]}  b5 {[%clk 0:00:33]} 36. Nxc4 {[%clk 0:00:13]}  bxc4 {[%clk 0:00:34]} 37. Rb1 {[%clk 0:00:13]}  Kh7 {[%clk 0:00:35]} 38. Qc2+ {[%clk 0:00:13]}  g6 {[%clk 0:00:35]} 39. hxg6+ {[%clk 0:00:12]}  fxg6 {[%clk 0:00:36]} 40. Rb6 {[%clk 0:00:12]}  Qc5+ {[%clk 0:00:32]} 41. Qf2 {[%clk 0:00:09]}  Qxf2+ {[%clk 0:00:33]} 42. Kxf2 {[%clk 0:00:09]}  Re8 {[%clk 0:00:30]} 43. Rb7+ {[%clk 0:00:09]}  Kg8 {[%clk 0:00:29]} 44. Ra7 {[%clk 0:00:10]}  Rc8 {[%clk 0:00:29]} 45. Ke2 {[%clk 0:00:10]}  c3 {[%clk 0:00:29]} 46. Kd1 {[%clk 0:00:10]}  c2+ {[%clk 0:00:29]} 47. Kc1 {[%clk 0:00:11]}  h5 {[%clk 0:00:30]} 48. gxh5 {[%clk 0:00:09]}  gxh5 {[%clk 0:00:31]} 49. Rxa6 {[%clk 0:00:10]}  Kf7 {[%clk 0:00:31]} 50. Ra7+ {[%clk 0:00:10]}  Kg6 {[%clk 0:00:31]} 51. Re7 {[%clk 0:00:10]}  Kf5 {[%clk 0:00:32]} 52. Rh7 {[%clk 0:00:11]}  Kxe5 {[%clk 0:00:32]} 53. Rxh5+ {[%clk 0:00:11]}  Kd6 {[%clk 0:00:33]} 54. Rh4 {[%clk 0:00:11]}  Rc4 {[%clk 0:00:32]} 55. Rh8 {[%clk 0:00:09]}  e5 {[%clk 0:00:29]} 56. Rd8+ {[%clk 0:00:07]}  Kc5 {[%clk 0:00:29]} 57. Re8 {[%clk 0:00:07]}  Kd4 {[%clk 0:00:30]} 58. Rh8 {[%clk 0:00:06]}  e4 {[%clk 0:00:30]} 59. Rh3 {[%clk 0:00:06]}  e3 {[%clk 0:00:29]} 0-1


[Site "https://www.chess.com"]

[Event "Titled Tuesday Blitz March 22 Early 2022"]
[White "Valle Maytin, Luis Enrique"]
[Black "Cramling Bellon, Anna"]
[WhiteFideId "3503666"]
[BlackFideId "32009232"]
[WhiteElo "2224"]
[BlackElo "1905"]
[Result "1-0"]
[Round "08"]
[TimeControl "180+1"]
[Date "2022.03.22"]
[WhiteClock "0:00:23"]
[BlackClock "0:00:03"]

1. e4 {[%clk 0:03:00]}  c5 {[%clk 0:02:57]} 2. Nf3 {[%clk 0:02:58]}  Nc6 {[%clk 0:02:54]} 3. d4 {[%clk 0:02:57]}  cxd4 {[%clk 0:02:53]} 4. Nxd4 {[%clk 0:02:58]}  g6 {[%clk 0:02:52]} 5. Nc3 {[%clk 0:02:56]}  Bg7 {[%clk 0:02:52]} 6. Be3 {[%clk 0:02:53]}  d6 {[%clk 0:02:49]} 7. Bc4 {[%clk 0:02:52]}  Nf6 {[%clk 0:02:47]} 8. O-O {[%clk 0:02:47]}  O-O {[%clk 0:02:44]} 9. h3 {[%clk 0:02:39]}  a6 {[%clk 0:02:42]} 10. a4 {[%clk 0:02:36]}  Qc7 {[%clk 0:02:41]} 11. Bb3 {[%clk 0:02:33]}  Ne5 {[%clk 0:02:28]} 12. Qe2 {[%clk 0:02:18]}  Nc6 {[%clk 0:01:55]} 13. Rad1 {[%clk 0:02:06]}  Bd7 {[%clk 0:01:47]} 14. f4 {[%clk 0:01:59]}  e5 {[%clk 0:01:31]} 15. Nf3 {[%clk 0:01:24]}  Rfe8 {[%clk 0:01:27]} 16. Ng5 {[%clk 0:01:18]}  Re7 {[%clk 0:01:19]} 17. f5 {[%clk 0:01:09]}  Be8 {[%clk 0:00:55]} 18. Nd5 {[%clk 0:01:04]}  Nxd5 {[%clk 0:00:45]} 19. Bxd5 {[%clk 0:00:58]}  h6 {[%clk 0:00:26]} 20. f6 {[%clk 0:00:53]}  hxg5 {[%clk 0:00:25]} 21. fxe7 {[%clk 0:00:52]}  Nxe7 {[%clk 0:00:24]} 22. Bxg5 {[%clk 0:00:50]}  Nxd5 {[%clk 0:00:22]} 23. Rxd5 {[%clk 0:00:51]}  Bc6 {[%clk 0:00:19]} 24. Rdd1 {[%clk 0:00:45]}  Bxa4 {[%clk 0:00:19]} 25. b3 {[%clk 0:00:45]}  Bc6 {[%clk 0:00:18]} 26. Rf3 {[%clk 0:00:44]}  f5 {[%clk 0:00:14]} 27. Rfd3 {[%clk 0:00:39]}  Bxe4 {[%clk 0:00:12]} 28. Rxd6 {[%clk 0:00:39]}  Qxc2 {[%clk 0:00:06]} 29. Qxc2 {[%clk 0:00:31]}  Bxc2 {[%clk 0:00:07]} 30. Rc1 {[%clk 0:00:32]}  Bxb3 {[%clk 0:00:06]} 31. Rc7 {[%clk 0:00:32]}  Bf7 {[%clk 0:00:06]} 32. Rdd7 {[%clk 0:00:32]}  Rf8 {[%clk 0:00:03]} 33. Be7 {[%clk 0:00:32]}  Be6 {[%clk 0:00:01]} 34. Rd6 {[%clk 0:00:32]}  Re8 {[%clk 0:00:01]} 35. Rxe6 {[%clk 0:00:32]}  Kf7 {[%clk 0:00:01]} 36. Bf6+ {[%clk 0:00:26]}  Kxe6 {[%clk 0:00:01]} 37. Bxg7 {[%clk 0:00:27]}  Kd6 {[%clk 0:00:01]} 38. Rxb7 {[%clk 0:00:27]}  e4 {[%clk 0:00:01]} 39. Kf2 {[%clk 0:00:26]}  Rc8 {[%clk 0:00:01]} 40. Bd4 {[%clk 0:00:26]}  Rc2+ {[%clk 0:00:01]} 41. Kg3 {[%clk 0:00:25]}  Kd5 {[%clk 0:00:02]} 42. Be3 {[%clk 0:00:25]}  Rc3 {[%clk 0:00:02]} 43. Kf4 {[%clk 0:00:25]}  Rd3 {[%clk 0:00:02]} 44. h4 {[%clk 0:00:25]}  a5 {[%clk 0:00:02]} 45. Rb5+ {[%clk 0:00:24]}  Kc4 {[%clk 0:00:02]} 46. Rxa5 {[%clk 0:00:25]}  Rd1 {[%clk 0:00:01]} 47. Rc5+ {[%clk 0:00:25]}  Kd3 {[%clk 0:00:01]} 48. Rd5+ {[%clk 0:00:25]}  Ke2 {[%clk 0:00:02]} 49. Rxd1 {[%clk 0:00:25]}  Kxd1 {[%clk 0:00:03]} 50. Kg5 {[%clk 0:00:23]}  Ke2 {[%clk 0:00:03]} 51. Bf4 {[%clk 0:00:24]}  e3 {[%clk 0:00:03]} 52. Kxg6 {[%clk 0:00:24]}  Kf2 {[%clk 0:00:03]} 53. Bxe3+ {[%clk 0:00:23]}  Kxg2 {[%clk 0:00:02]} 54. Kxf5 {[%clk 0:00:24]}  Kf3 {[%clk 0:00:01]} 55. h5 {[%clk 0:00:24]}  Kxe3 {[%clk 0:00:01]} 56. h6 {[%clk 0:00:25]}  Kd4 {[%clk 0:00:02]} 57. h7 {[%clk 0:00:26]}  Kd5 {[%clk 0:00:02]} 58. h8=Q {[%clk 0:00:27]}  Kd6 {[%clk 0:00:03]} 59. Qd8+ {[%clk 0:00:25]}  Kc6 {[%clk 0:00:02]} 60. Ke6 {[%clk 0:00:25]}  Kb7 {[%clk 0:00:03]} 61. Kd6 {[%clk 0:00:25]}  Ka7 {[%clk 0:00:04]} 62. Qc7+ {[%clk 0:00:22]}  Ka6 {[%clk 0:00:02]} 63. Qb8 {[%clk 0:00:22]}  Ka5 {[%clk 0:00:02]} 64. Kc5 {[%clk 0:00:23]}  Ka4 {[%clk 0:00:03]} 65. Qb4# {[%clk 0:00:23]} 1-0


[Site "https://www.chess.com"]

[Event "Titled Tuesday Blitz March 22 Early 2022"]
[White "Vine, Elzbieta"]
[Black "Bashirli, Saadat"]
[WhiteFideId "1119320"]
[BlackFideId "13429990"]
[WhiteElo "1824"]
[BlackElo "1173"]
[Result "0-1"]
[Round "08"]
[TimeControl "180+1"]
[Date "2022.03.22"]
[WhiteClock "0:00:02"]
[BlackClock "0:00:09"]

1. e4 {[%clk 0:03:00]}  c5 {[%clk 0:02:59]} 2. Nf3 {[%clk 0:02:57]}  g6 {[%clk 0:02:57]} 3. d4 {[%clk 0:02:53]}  cxd4 {[%clk 0:02:57]} 4. Nxd4 {[%clk 0:02:52]}  Nc6 {[%clk 0:02:55]} 5. Nc3 {[%clk 0:02:48]}  Bg7 {[%clk 0:02:53]} 6. Be3 {[%clk 0:02:47]}  Nf6 {[%clk 0:02:49]} 7. f4 {[%clk 0:02:31]}  d6 {[%clk 0:02:37]} 8. h3 {[%clk 0:02:18]}  a6 {[%clk 0:02:24]} 9. Qd2 {[%clk 0:02:08]}  Bd7 {[%clk 0:02:10]} 10. O-O-O {[%clk 0:02:05]}  Qa5 {[%clk 0:01:54]} 11. g4 {[%clk 0:01:48]}  O-O-O {[%clk 0:01:46]} 12. Kb1 {[%clk 0:01:38]}  Kb8 {[%clk 0:01:38]} 13. Qf2 {[%clk 0:01:33]}  Rc8 {[%clk 0:01:25]} 14. g5 {[%clk 0:01:30]}  Ne8 {[%clk 0:01:21]} 15. a3 {[%clk 0:01:03]}  Nxd4 {[%clk 0:01:19]} 16. Bxd4 {[%clk 0:01:02]}  Bxd4 {[%clk 0:01:18]} 17. Qxd4 {[%clk 0:01:01]}  Nc7 {[%clk 0:01:16]} 18. e5 {[%clk 0:00:55]}  Bc6 {[%clk 0:00:48]} 19. Rg1 {[%clk 0:00:49]}  Ne6 {[%clk 0:00:40]} 20. Qe3 {[%clk 0:00:38]}  dxe5 {[%clk 0:00:33]} 21. fxe5 {[%clk 0:00:35]}  Rhd8 {[%clk 0:00:30]} 22. Be2 {[%clk 0:00:32]}  Qc7 {[%clk 0:00:18]} 23. h4 {[%clk 0:00:30]}  Ng7 {[%clk 0:00:16]} 24. Bg4 {[%clk 0:00:28]}  e6 {[%clk 0:00:14]} 25. Rge1 {[%clk 0:00:20]}  Nf5 {[%clk 0:00:13]} 26. Qf2 {[%clk 0:00:19]}  Rxd1+ {[%clk 0:00:12]} 27. Bxd1 {[%clk 0:00:18]}  Rd8 {[%clk 0:00:12]} 28. Bg4 {[%clk 0:00:16]}  Qd7 {[%clk 0:00:12]} 29. Bxf5 {[%clk 0:00:15]}  exf5 {[%clk 0:00:13]} 30. Qe3 {[%clk 0:00:13]}  Qe6 {[%clk 0:00:13]} 31. Qf4 {[%clk 0:00:12]}  Ka8 {[%clk 0:00:11]} 32. Kc1 {[%clk 0:00:11]}  Be8 {[%clk 0:00:09]} 33. Qe3 {[%clk 0:00:09]}  Bc6 {[%clk 0:00:09]} 34. Qf4 {[%clk 0:00:08]}  Rd7 {[%clk 0:00:09]} 35. Qe3 {[%clk 0:00:07]}  Kb8 {[%clk 0:00:07]} 36. Qf4 {[%clk 0:00:06]}  Bd5 {[%clk 0:00:07]} 37. Qe3 {[%clk 0:00:05]}  Qc6 {[%clk 0:00:07]} 38. Qf4 {[%clk 0:00:04]}  Be6 {[%clk 0:00:08]} 39. Qe3 {[%clk 0:00:03]}  Qc8 {[%clk 0:00:08]} 40. Qf4 {[%clk 0:00:02]}  Qd8 {[%clk 0:00:08]} 41. Qe3 {[%clk 0:00:02]}  Rd4 {[%clk 0:00:09]} 0-1


[Site "https://www.chess.com"]

[Event "Titled Tuesday Blitz March 22 Early 2022"]
[White "Vokhidov, Shamsiddin"]
[Black "Martinez Alcantara, Jose Eduardo"]
[WhiteFideId "14204223"]
[BlackFideId "3805662"]
[WhiteElo "2611"]
[BlackElo "2690"]
[Result "1-0"]
[Round "08"]
[TimeControl "180+1"]
[Date "2022.03.22"]
[WhiteClock "0:00:19"]
[BlackClock "0:00:07"]

1. e4 {[%clk 0:03:00]}  c5 {[%clk 0:02:58]} 2. Nf3 {[%clk 0:03:01]}  d6 {[%clk 0:02:58]} 3. Bb5+ {[%clk 0:03:00]}  Nd7 {[%clk 0:02:58]} 4. a4 {[%clk 0:03:00]}  Nf6 {[%clk 0:02:54]} 5. Nc3 {[%clk 0:02:59]}  g6 {[%clk 0:02:55]} 6. a5 {[%clk 0:02:50]}  Bg7 {[%clk 0:02:55]} 7. O-O {[%clk 0:02:48]}  O-O {[%clk 0:02:55]} 8. a6 {[%clk 0:02:44]}  bxa6 {[%clk 0:02:50]} 9. Bxa6 {[%clk 0:02:44]}  Bxa6 {[%clk 0:02:50]} 10. Rxa6 {[%clk 0:02:45]}  Nb8 {[%clk 0:02:48]} 11. Ra1 {[%clk 0:02:42]}  Nc6 {[%clk 0:02:49]} 12. d3 {[%clk 0:02:41]}  Qb8 {[%clk 0:02:41]} 13. Re1 {[%clk 0:02:36]}  Nd7 {[%clk 0:02:37]} 14. Nd5 {[%clk 0:02:32]}  e6 {[%clk 0:02:32]} 15. Ne3 {[%clk 0:02:31]}  Nde5 {[%clk 0:02:26]} 16. Nxe5 {[%clk 0:02:30]}  Nxe5 {[%clk 0:02:27]} 17. Ra2 {[%clk 0:02:17]}  Nc6 {[%clk 0:02:23]} 18. Bd2 {[%clk 0:02:15]}  Nb4 {[%clk 0:02:08]} 19. Ra3 {[%clk 0:02:04]}  d5 {[%clk 0:01:56]} 20. exd5 {[%clk 0:02:02]}  exd5 {[%clk 0:01:56]} 21. Ra4 {[%clk 0:01:27]}  Qb7 {[%clk 0:01:25]} 22. d4 {[%clk 0:01:15]}  Bxd4 {[%clk 0:00:56]} 23. c3 {[%clk 0:01:15]}  Bxe3 {[%clk 0:00:26]} 24. Bxe3 {[%clk 0:01:16]}  d4 {[%clk 0:00:25]} 25. Bh6 {[%clk 0:01:10]}  Nc6 {[%clk 0:00:12]} 26. Bxf8 {[%clk 0:01:09]}  Rxf8 {[%clk 0:00:13]} 27. Qc2 {[%clk 0:00:56]}  Rd8 {[%clk 0:00:11]} 28. cxd4 {[%clk 0:00:55]}  cxd4 {[%clk 0:00:09]} 29. Rd1 {[%clk 0:00:46]}  Qb5 {[%clk 0:00:07]} 30. Rc4 {[%clk 0:00:41]}  Rd6 {[%clk 0:00:05]} 31. Rc5 {[%clk 0:00:39]}  Qb6 {[%clk 0:00:06]} 32. h3 {[%clk 0:00:33]}  a6 {[%clk 0:00:06]} 33. h4 {[%clk 0:00:28]}  Kg7 {[%clk 0:00:07]} 34. h5 {[%clk 0:00:29]}  Kf8 {[%clk 0:00:06]} 35. h6 {[%clk 0:00:28]}  Ke7 {[%clk 0:00:05]} 36. Rc1 {[%clk 0:00:25]}  Kd7 {[%clk 0:00:05]} 37. Qc4 {[%clk 0:00:23]}  Re6 {[%clk 0:00:02]} 38. Qd5+ {[%clk 0:00:22]}  Ke7 {[%clk 0:00:03]} 39. Rxc6 {[%clk 0:00:22]}  Qxb2 {[%clk 0:00:03]} 40. Rxe6+ {[%clk 0:00:20]}  fxe6 {[%clk 0:00:04]} 41. Rc7+ {[%clk 0:00:18]}  Kf6 {[%clk 0:00:04]} 42. Qf3+ {[%clk 0:00:19]}  Ke5 {[%clk 0:00:05]} 43. Rc5+ {[%clk 0:00:18]}  Kd6 {[%clk 0:00:05]} 44. Qc6+ {[%clk 0:00:18]}  Ke7 {[%clk 0:00:06]} 45. Qc7+ {[%clk 0:00:19]}  Kf6 {[%clk 0:00:07]} 46. Qe5+ {[%clk 0:00:19]} 1-0


[Site "https://www.chess.com"]